[Event "101st Irish Championship 2022"]
[Site "Dublin"]
[Date "2022.07.06"]
[Round "5.11"]
[White "O`Gorman, Alice"]
[Black "Keogh, Eamon"]
[Result "1-0"]
[ECO "A21"]
[WhiteElo "2043"]
[BlackElo "1931"]
[Annotator "TA"]
[PlyCount "55"]
[EventDate "2022.07.05"]
[EventType "swiss"]
[EventCountry "IRL"]
[SourceTitle "playchess.com"]
[Source "ChessBase"]
[SourceQuality "1"]
[TimeControl "40/6300+30:1800+30"]

{[%evp 9,55,53,54,41,122,114,114,97,95,91,103,56,79,75,79,62,423,420,466,462,464,462,546,485,483,282,274,300,290,304,298,286,291,291,399,395,380,381,568,561,545,555,579,504,666,665,639,623]} 1. c4 {[%emt 0:00:03]} f5 {[%emt 0:13:14]} 2. Nc3 {[%emt 0:00:05]} Nf6 {[%emt 0:00:04]} 3. g3 {[%emt 0:00:09]} e5 {[%emt 0:00:23]} 4. d4 {[%emt 0:00:07]} e4 {[%emt 0:00:11]} 5. Nh3 {[%emt 0:00:19]} Nc6 {[%emt 0:02:31]} 6. Bg2 {[%emt 0:00:54] [#] A21: English Opening: 1...e5 2 Nc3.} Ne7 $146 {[%emt 0:02:48]} (6... d5 $14) ({Predecessor:} 6... Be7 7. Bg5 O-O 8. Nf4 Ng4 9. Bxe7 Nxe7 10. h3 Nf6 11. e3 d5 12. cxd5 Nexd5 13. Ncxd5 Nxd5 {1-0 (50) Deviatkin,A (2461)-Mythireyan,P (1913) New Delhi 2019}) 7. Bg5 $16 {[%emt 0:01:50]} Ng6 {[%emt 0:02:15]} 8. O-O {[%emt 0:02:09] White is better.} Be7 {[%emt 0:00:57]} 9. f3 {[%emt 0:04:16]} exf3 {[%emt 0:05:30]} 10. Bxf3 {[%emt 0:02:13]} (10. exf3 $16 O-O 11. Qd3) 10... c6 {[%emt 0:01:43]} 11. e4 {[%emt 0:03:02] White is more active.} fxe4 {[%emt 0:01:43]} 12. Bxe4 {[%emt 0:05:37]} Nxe4 {[%emt 0:01:47][%mdl 8192] Loses the game.} (12... d6 $1 $14 13. Bxg6+ hxg6) 13. Nxe4 $18 {[%emt 0:01:33]} d5 {[%emt 0:00:55] [#]} 14. Bxe7 $1 {[%emt 0:00:29]} Qxe7 {[%emt 0:03:01] [#]} 15. Neg5 {[%emt 0:00:40]} Bxh3 {[%emt 0:11:08]} 16. Re1 {[%emt 0:00:40]} O-O {[%emt 0:02:12]} 17. Qh5 {[%emt 0:10:03]} (17. Rxe7 $142 {[%cal Od1h5] White wants to mate with Qh5!} Rf1+ 18. Qxf1 Bxf1 19. Rxb7 (19. Rxf1 Nxe7 20. Re1 Re8 $11) 19... Bxc4 20. Ne6) 17... Qxg5 {[%emt 0:04:58]} 18. Qxg5 {[%emt 0:00:08]} Rf5 {[%emt 0:00:05]} 19. Qe3 {[%emt 0:04:25]} Raf8 {[%emt 0:00:52]} 20. cxd5 {[%emt 0:04:36]} cxd5 {[%emt 0:01:17]} 21. Rac1 {[%emt 0:03:04]} Rf3 {[%emt 0:00:48]} 22. Qe2 {[%emt 0:06:09]} h5 {[%emt 0:00:25]} 23. Qb5 {[%emt 0:07:08]} R3f5 {[%emt 0:01:11]} (23... R8f5 {is a better defense.} 24. Re8+ Kh7) 24. Re8 {[%emt 0:08:34] White is clearly winning.} Rxe8 {[%emt 0:02:18]} 25. Qxe8+ {[%emt 0:00:09]} Kh7 {[%emt 0:00:07]} 26. Qe2 {[%emt 0:03:39]} h4 {[%emt 0:01:11]} 27. Rc7 {[%emt 0:15:55]} Nf8 {[%emt 0:04:42]} 28. g4 {[%emt 0:05:14] Weighted Error Value: White=0.19 (very precise) /Black=0.52} 1-0

[Event "101st Irish Championship 2022"]
[Site "Dublin"]
[Date "2022.07.06"]
[Round "5.12"]
[White "Murray, Sam"]
[Black "Liu, Jason"]
[Result "0-1"]
[ECO "C00"]
[WhiteElo "1624"]
[BlackElo "1746"]
[Annotator "NA RC COMBH"]
[PlyCount "58"]
[EventDate "2022.07.05"]
[EventType "swiss"]
[EventCountry "IRL"]
[SourceTitle "playchess.com"]
[Source "ChessBase"]
[SourceQuality "1"]
[TimeControl "40/6300+30:1800+30"]

1. e4 {[%emt 0:00:03]} e6 {[%emt 0:00:09]} 2. b3 {[%emt 0:00:21]} d5 {[%emt 0:00:14]} 3. Bb2 {[%emt 0:00:01]} dxe4 {[%emt 0:00:12]} 4. Nc3 {[%emt 0:00:05]} Nf6 {[%emt 0:00:08]} 5. g4 {[%emt 0:00:04]} Nc6 {[%emt 0:00:12]} 6. g5 {[%emt 0:01:03]} Nd5 {[%emt 0:00:15]} 7. Nxe4 {[%emt 0:01:06]} h6 {[%emt 0:00:52]} 8. g6 {[%emt 0:00:04]} f5 {[%emt 0:00:23]} 9. Ng3 {[%emt 0:00:05]} Bd7 {[%emt 0:05:09]} 10. Nh3 {[%emt 0:17:19]} Qe7 {[%emt 0:10:05]} 11. Bg2 {[%emt 0:09:19]} O-O-O {[%emt 0:11:52]} 12. Qe2 {[%emt 0:22:59]} Qc5 {[%emt 0:20:23]} 13. c4 {[%emt 0:14:44]} Nd4 {[%emt 0:13:31]} 14. Bxd4 {[%emt 0:05:13]} Qxd4 {[%emt 0:00:17]} 15. O-O {[%emt 0:02:15]} Nf6 {[%emt 0:06:04]} 16. Qe3 {[%emt 0:09:13]} Qxe3 {[%emt 0:09:16]} 17. fxe3 {[%emt 0:00:29]} Bd6 {[%emt 0:04:22]} 18. Nf4 {[%emt 0:05:33]} Rhe8 {[%emt 0:06:31]} 19. Nfh5 {[%emt 0:01:52]} Rg8 {[%emt 0:03:38]} 20. d4 {[%emt 0:06:41]} Be8 {[%emt 0:02:02]} 21. Nf4 {[%emt 0:12:01]} Bxf4 {[%emt 0:01:30]} 22. Rxf4 {[%emt 0:00:02]} Bxg6 {[%emt 0:00:46]} 23. Bh3 {[%emt 0:02:25]} Nh5 {[%emt 0:04:24]} 24. Nxh5 {[%emt 0:00:21]} Bxh5 {[%emt 0:00:02]} 25. Rh4 {[%emt 0:00:52]} Bf7 {[%emt 0:01:33]} 26. Rf1 {[%emt 0:00:30]} h5 {[%emt 0:03:15]} 27. Rhf4 {[%emt 0:00:29]} g6 {[%emt 0:01:11]} 28. Rd1 {[%emt 0:01:46]} c5 {[%emt 0:01:34]} 29. Kf2 {[%emt 0:00:21]} g5 {[%emt 0:00:33]} 0-1

[Event "101st Irish Championship 2022"]
[Site "Dublin"]
[Date "2022.07.07"]
[Round "6.1"]
[White "O`Gorman, Tom"]
[Black "Kanyamarala, Tarun"]
[Result "1/2-1/2"]
[ECO "E36"]
[WhiteElo "2401"]
[BlackElo "2379"]
[Annotator "TA"]
[PlyCount "195"]
[EventDate "2022.07.05"]
[EventType "swiss"]
[EventCountry "IRL"]
[SourceTitle "playchess.com"]
[Source "ChessBase"]
[SourceQuality "1"]
[TimeControl "40/6300+30:1800+30"]

{[%evp 18,195,14,-22,-19,-45,-27,-84,-76,-84,-88,-87,-92,-90,-80,-105,-106,-120,-22,0,14,21,29,31,38,35,31,16,4,0,0,0,7,0,10,-14,-10,-16,-16,-62,0,-86,-38,-146,-149,-157,-156,-142,-17,-71,-71,-71,-71,-71,-68,-62,-68,-70,-70,-79,-70,-65,-1,-1,-1,-1,-1,-1,0,-13,-13,-13,-13,-13,0,-4,0,0,0,0,0,0,0,0,0,0,0,0,0,0,0,0,0,0,0,0,0,0,0,-8,-8,-8,-8,-8,-8,-8,-8,-8,0,-8,0,0,0,0,0,-7,-7,-7,-7,-7,-7,-97,-97,-100,-8,-15,-15,-100,-15,-86,-15,-23,-8,-8,-8,-8,0,-86,-8,-86,-86,-86,0,-8,-8,-8,0,-8,-8,-86,-86,-86,-86,-86,-86,-86,0,0,0,-86,0,-86,-8,-8,-8,-86,-86,-86,-8,-86,0,-86,0,-8,-4,-4,-4,-4,-4,-4]} 1. d4 {[%emt 0:00:08]} Nf6 {[%emt 0:00:18]} 2. c4 {[%emt 0:00:16]} e6 {[%emt 0:00:16]} 3. Nc3 {[%emt 0:00:14]} Bb4 {[%emt 0:00:13]} 4. Qc2 {[%emt 0:00:37]} d5 {[%emt 0:01:48]} 5. a3 {[%emt 0:01:22]} Bxc3+ {[%emt 0:00:26]} 6. Qxc3 {[%emt 0:00:09]} O-O {[%emt 0:01:36]} 7. e3 {[%emt 0:04:23]} b6 {[%emt 0:05:56]} 8. Nf3 {[%emt 0:03:25]} Ba6 {[%emt 0:12:48]} 9. b3 {[%emt 0:03:29]} c5 {[%emt 0:07:05]} 10. Be2 {[%emt 0:08:35]} cxd4 {[%emt 0:14:37]} (10... dxc4 {with more complications.} 11. bxc4 cxd4 12. Nxd4 Ne4) 11. exd4 {[%emt 0:02:48]} Nc6 {[%emt 0:05:36]} 12. O-O {[%emt 0:04:08]} (12. Bb2 $11) 12... Rc8 $1 $17 {[%emt 0:01:07]} 13. a4 {[%emt 0:29:24]} dxc4 {[%emt 0:16:06]} 14. bxc4 {[%emt 0:00:29]} Na5 {[%emt 0:01:18]} 15. Ne5 {[%emt 0:02:01]} Ne4 {[%emt 0:14:49]} 16. Qe3 {[%emt 0:09:30]} Nd6 {[%emt 0:01:44]} 17. Ba3 {[%emt 0:04:45]} Nf5 {[%emt 0:13:15]} (17... Bxc4 $17 18. Rfc1 Nf5) 18. Qh3 $1 $11 {[%emt 0:02:02]} Qxd4 {[%emt 0:01:09]} 19. Nf3 {[%emt 0:00:56]} (19. Bxf8 $2 Qxe5 20. Bxg7 Qxg7 $19) 19... Qf4 {[%emt 0:01:21]} 20. g3 {[%emt 0:01:24]} Qc7 {[%emt 0:02:05]} 21. Bxf8 {[%emt 0:00:59]} ({Avoid the trap} 21. Ng5 $2 h6 22. Bxf8 Nd4 $19) 21... Rxf8 {[%emt 0:00:19]} 22. Rfd1 {[%emt 0:02:24]} (22. Ng5 h6 23. Nf3 Nb3 $15) 22... Bb7 {[%emt 0:01:33]} 23. g4 {[%emt 0:02:40]} ({Much weaker is} 23. Ng5 h6 24. Nf3 Nb3 $17) 23... Ne7 {[%emt 0:01:45]} 24. Qg3 {[%emt 0:00:50]} Qc8 {[%emt 0:00:27]} 25. Nd4 {[%emt 0:03:05]} Ng6 {[%emt 0:02:26]} 26. Rac1 {[%emt 0:02:16]} e5 {[%emt 0:01:26]} 27. Nf5 $1 {[%emt 0:03:38]} Qc6 $1 {[%emt 0:00:17]} 28. f3 {[%emt 0:02:27]} (28. Rd5 $11) 28... Qxa4 {[%emt 0:00:09]} (28... Qc7 $15) 29. Bd3 {[%emt 0:07:17]} (29. Qf2 $11) 29... Nb3 {[%emt 0:01:47]} (29... Nf4 $17 {Threatens to win with ...Nb3.} 30. Qe1 Qe8) 30. Rc2 {[%emt 0:05:38]} (30. Rb1 $15 Na5 31. Qf2) 30... Nc5 $17 {[%emt 0:00:47]} 31. Rcd2 {[%emt 0:00:35]} Nxd3 {[%emt 0:01:12]} 32. Rxd3 {[%emt 0:00:01]} Qxc4 {[%emt 0:00:43]} (32... Nf4 $1 $17 {[%cal Rf4e2] And now ...Ne2+ would win.} 33. Rd8 (33. Ne7+ $2 Kh8 $17) 33... Qxd1+ $3 {[%mdl 512]} 34. Rxd1 Ne2+ 35. Kg2 Nxg3 36. Kxg3 Ba6 37. Ne7+ Kh8) 33. Rd8 {[%emt 0:00:52]} (33. Qe1 $1 $11) 33... Qc7 $1 $17 {[%emt 0:01:03]} 34. R8d7 {[%emt 0:04:38] [#]} Qc5+ $1 {[%emt 0:00:31]} 35. Qf2 {[%emt 0:00:27]} Bxf3 $1 {[%emt 0:00:44]} 36. Qxc5 {[%emt 0:02:11]} bxc5 {[%emt 0:00:04]} 37. Rc1 $1 {[%emt 0:00:25]} Bxg4 {[%emt 0:00:29]} 38. Ne7+ {[%emt 0:00:06]} Nxe7 {[%emt 0:00:17]} 39. Rxe7 {[%emt 0:00:03]} Be2 {[%emt 0:04:42]} (39... Be6 $15 40. Rxc5 Ra8 41. Rxe5 Kf8) 40. Rxc5 $11 {[%emt 0:01:48]} a6 {[%emt 0:00:25]} 41. Rexe5 {[%emt 0:30:13]} Bb5 {[%emt 0:30:44]} 42. Re7 {[%emt 0:01:51]} g6 {[%emt 0:00:00]} 43. h4 {[%emt 0:00:00]} Rd8 {[%emt 0:00:00]} 44. h5 {[%emt 0:00:00]} Kg7 {[%emt 0:00:00]} 45. Rcc7 {[%emt 0:00:00]} Be8 {[%emt 0:00:00]} 46. Ra7 {[%emt 0:00:00]} Kf6 {[%emt 0:00:00]} 47. Rec7 {[%emt 0:00:00]} Kg5 {[%emt 0:01:05]} 48. hxg6 {[%emt 0:00:00]} hxg6 {[%emt 0:00:11]} 49. Rxa6 {[%emt 0:00:00]} Rd5 {[%emt 0:02:18]} 50. Re7 {[%emt 0:00:00]} Bb5 {[%emt 0:00:13]} 51. Ra5 {[%emt 0:00:00]} f5 {[%emt 0:00:20]} 52. Re1 {[%emt 0:00:13]} Bc6 {[%emt 0:01:20]} 53. Rxd5 {[%emt 0:00:24]} Bxd5 {[%emt 0:00:01]} 54. Re5 {[%emt 0:00:43]} Be4 {[%emt 0:00:14]} 55. Re6 {[%emt 0:00:28]} Kh5 {[%emt 0:00:12]} 56. Kf2 {[%emt 0:02:53]} g5 {[%emt 0:00:07]} 57. Re8 {[%emt 0:00:47]} Kg4 {[%emt 0:00:16]} 58. Rg8 {[%emt 0:00:34]} Kf4 {[%emt 0:00:03]} 59. Kg1 {[%emt 0:00:35]} Bd5 {[%emt 0:00:15]} 60. Rd8 {[%emt 0:00:09]} Bf3 {[%emt 0:00:22]} 61. Rg8 {[%emt 0:00:12]} Bh5 {[%emt 0:01:11]} 62. Kf2 {[%emt 0:00:18]} Kg4 {[%emt 0:00:04]} 63. Kg2 {[%emt 0:00:47]} f4 {[%emt 0:00:10]} 64. Kf2 {[%emt 0:00:05]} Bf7 {[%emt 0:00:03]} 65. Rf8 {[%emt 0:00:12]} Bd5 {[%emt 0:00:09]} 66. Rd8 {[%emt 0:00:10]} Be4 {[%emt 0:00:04]} 67. Rg8 {[%emt 0:00:19]} Bd3 {[%emt 0:00:13]} 68. Kg1 {[%emt 0:00:53]} Kh4 {[%emt 0:00:29]} 69. Rf8 {[%emt 0:00:13]} (69. Rd8 $11 Bb5 70. Rc8) 69... Kg3 $17 {[%emt 0:00:15]} 70. Rf7 {[%emt 0:03:08]} Kf3 {[%emt 0:00:57]} (70... g4 $17 71. Rf6 Bc4) 71. Rf8 {[%emt 0:00:18]} g4 {[%emt 0:01:26]} 72. Rf7 {[%emt 0:00:11]} (72. Ra8 $11 {remains equal.}) 72... Ke3 {[%emt 0:00:26]} ({Better is} 72... Kg3 $17 73. Rf6 Be4) 73. Kg2 {[%emt 0:02:28]} (73. Re7+ $11 Be4 74. Rf7) 73... Be4+ {[%emt 0:00:40]} (73... Bg6 $17 74. Re7+ Be4+ 75. Kf1 g3) 74. Kg1 $1 $11 {[%emt 0:00:53]} g3 {[%emt 0:03:12]} 75. Rg7 $1 {[%emt 0:00:27]} Bd5 {[%emt 0:00:47]} 76. Rg5 {[%emt 0:00:25]} Be4 {[%emt 0:00:30]} (76... Ke4 $5) 77. Rg8 {[%emt 0:00:26] [#]} (77. Rg7 $1 $11) 77... Ke2 {[%emt 0:00:16]} (77... Kf3 $1 $17 78. Kf1 Bd5) 78. Re8 {[%emt 0:00:10]} (78. Rxg3 $1 $11 fxg3) 78... Kf3 $17 {[%emt 0:00:17]} 79. Rg8 {[%emt 0:00:11]} Ke3 {[%emt 0:00:07]} (79... Bc6 $17 80. Rc8 Bb5) 80. Rg7 $11 {[%emt 0:00:14]} Bc6 {[%emt 0:00:50]} 81. Rg6 {[%emt 0:00:19]} Bd5 {[%emt 0:00:17]} (81... Bd7 $5) 82. Rg5 {[%emt 0:00:07]} Bc4 {[%emt 0:00:09]} (82... Ke4 $5) 83. Re5+ {[%emt 0:00:14]} (83. Kg2 $11) 83... Kf3 $17 {[%emt 0:00:10]} 84. Rg5 {[%emt 0:00:15]} Bd3 {[%emt 0:00:13]} 85. Rg8 {[%emt 0:00:25]} Be2 {[%emt 0:00:25]} 86. Rg7 {[%emt 0:00:12]} Ke3 {[%emt 0:00:11]} (86... Bd1 $17 87. Ra7 Bc2) 87. Re7+ $11 {[%emt 0:00:49]} Kf3 {[%emt 0:01:22]} ({Black should try} 87... Kd2 $11) 88. Rg7 $17 {[%emt 0:00:10]} Bd3 {[%emt 0:00:09]} 89. Rg8 $1 {[%emt 0:00:14]} Ke3 {[%emt 0:00:14]} (89... Bc2 $17 90. Re8 Bd3 91. Rg8) 90. Rg7 $11 {[%emt 0:00:33]} Bc4 {[%emt 0:00:26]} (90... Ke4 $5) 91. Re7+ {[%emt 0:00:27]} (91. Kg2 $11) 91... Kf3 $17 {[%emt 0:00:20]} 92. Rg7 {[%emt 0:00:31]} Bd5 {[%emt 0:00:04]} (92... Bb3 $17 93. Re7 Ba2) 93. Rg5 {[%emt 0:00:11]} (93. Rc7 $1 $11) 93... Be4 {[%emt 0:00:06]} 94. Rg8 $1 {[%emt 0:00:10]} Ke3 {[%emt 0:00:04]} (94... Bd3 $17 95. Re8 Bc4) 95. Rg7 $11 {[%emt 0:00:27]} g2 {[%emt 0:00:30]} 96. Rf7 {[%emt 0:00:36]} f3 {[%emt 0:00:14]} 97. Rf8 {[%emt 0:00:06]} Ke2 {[%emt 0:00:09]} 98. Rf6 {[%emt 0:00:11]} 1/2-1/2

[Event "101st Irish Championship 2022"]
[Site "Dublin"]
[Date "2022.07.07"]
[Round "6.2"]
[White "Baburin, Alexander"]
[Black "O`Donnell, Conor"]
[Result "1/2-1/2"]
[ECO "E11"]
[WhiteElo "2400"]
[BlackElo "2269"]
[Annotator "TA"]
[PlyCount "53"]
[EventDate "2022.07.05"]
[EventType "swiss"]
[EventCountry "IRL"]
[SourceTitle "playchess.com"]
[Source "ChessBase"]
[SourceQuality "1"]
[TimeControl "40/6300+30:1800+30"]

{[%evp 12,53,18,6,20,15,22,16,20,-4,2,-11,-13,-16,-10,-25,-27,-62,0,0,0,0,0,0,0,0,31,27,57,23,20,6,95,4,5,3,60,77,57,61,100,0,0,-13]} 1. d4 {[%emt 0:16:20]} Nf6 {[%emt 0:00:28]} 2. c4 {[%emt 0:00:09]} e6 {[%emt 0:00:09]} 3. g3 {[%emt 0:00:05]} d5 {[%emt 0:00:29]} 4. Nf3 {[%emt 0:00:06]} Bb4+ {[%emt 0:00:28]} 5. Bd2 {[%emt 0:00:25]} Be7 {[%emt 0:00:11]} 6. Bg2 {[%emt 0:00:08]} c6 {[%emt 0:00:15]} 7. Qc2 {[%emt 0:00:27]} b6 {[%emt 0:01:45] E11: Bogo-Indian.} 8. O-O {[%emt 0:11:50]} Nbd7 {[%emt 0:00:27]} 9. Rd1 {[%emt 0:04:39]} Bb7 {[%emt 0:01:44] 9...0-0 is not played anymore.} 10. Be1 {[%emt 0:04:17]} O-O {[%emt 0:05:05]} 11. Nbd2 {[%emt 0:06:46]} Rc8 {[%emt 0:07:45]} 12. e4 {[%emt 0:01:12]} c5 {[%emt 0:11:35][%cal Rd5e4] [#]} 13. exd5 $146 {[%emt 0:06:01]} (13. e5 {seems wilder.} Ne4 14. cxd5 Nxd2 15. Qxd2 Bxd5 16. Qe2) ({Predecessor:} 13. e5 Ne8 14. cxd5 Bxd5 15. Rac1 Nc7 16. dxc5 Na6 17. a3 Rxc5 18. Qd3 Rxc1 19. Rxc1 {0-1 (56) Bures,J (2376)-Krejci,J (2496) Ricany 2016}) 13... exd5 {[%emt 0:01:18]} 14. Rac1 {[%emt 0:04:03]} dxc4 {[%emt 0:07:04]} (14... Re8 $15) 15. Nxc4 $11 {[%emt 0:07:00]} cxd4 {[%emt 0:10:40]} 16. Nxd4 {[%emt 0:02:07]} Bxg2 {[%emt 0:00:41]} 17. Kxg2 {[%emt 0:00:22]} Re8 {[%emt 0:12:01]} 18. Qd3 {[%emt 0:15:55]} Qc7 {[%emt 0:11:59]} 19. Qf3 {[%emt 0:03:53]} a6 {[%emt 0:05:21]} 20. a4 {[%emt 0:08:38]} Bf8 {[%emt 0:01:46]} 21. b4 {[%emt 0:01:52]} Ne4 {[%emt 0:04:34] [#]} (21... Ne5 $11 22. Nxe5 Qxe5 23. Rxc8 Rxc8) 22. b5 {[%emt 0:06:22]} (22. Nxb6 $1 $16 Qxb6 23. Rxc8 Rxc8 24. Qxe4) 22... axb5 {[%emt 0:05:04]} 23. axb5 {[%emt 0:00:54][%cal Oc4b6]} Ndf6 {[%emt 0:02:28]} (23... Ne5 $11 24. Nxe5 Qxe5 25. Rxc8 Rxc8) 24. Nc6 $14 {[%emt 0:01:25]} Ra8 {[%emt 0:02:01]} 25. Rc2 {[%emt 0:03:22]} h6 {[%emt 0:01:38]} 26. Ne3 {[%emt 0:02:07] White is more active.} (26. Bd2 $16) 26... Ra3 $11 {[%emt 0:02:02]} 27. Qf5 {[%emt 0:08:35] Weighted Error Value: White=0.26 (precise) /Black=0.20 (precise)} 1/2-1/2

[Event "101st Irish Championship 2022"]
[Site "Dublin"]
[Date "2022.07.07"]
[Round "6.3"]
[White "O`cuilleanain, Oisin"]
[Black "Daly, Colm"]
[Result "1-0"]
[ECO "E80"]
[WhiteElo "1936"]
[BlackElo "2190"]
[Annotator "RC"]
[PlyCount "131"]
[EventDate "2022.07.05"]
[EventType "swiss"]
[EventCountry "IRL"]
[SourceTitle "playchess.com"]
[Source "ChessBase"]
[SourceQuality "1"]
[TimeControl "40/6300+30:1800+30"]

1. d4 {[%emt 0:00:03]} Nf6 {[%emt 0:05:12]} 2. c4 {[%emt 0:00:16]} g6 {[%emt 0:02:16]} 3. f3 {[%emt 0:01:35]} d6 {[%emt 0:00:10]} 4. e4 {[%emt 0:00:38]} Bg7 {[%emt 0:00:24]} 5. Nc3 {[%emt 0:00:12]} c6 {[%emt 0:00:11]} 6. Be3 {[%emt 0:08:12]} a6 {[%emt 0:00:20]} 7. a4 {[%emt 0:00:07]} a5 {[%emt 0:00:03]} 8. Nge2 {[%emt 0:00:36]} Na6 {[%emt 0:00:57]} 9. Qd2 {[%emt 0:05:59]} Nb4 {[%emt 0:03:13]} 10. Nc1 {[%emt 0:01:25]} e5 {[%emt 0:01:14]} 11. d5 {[%emt 0:05:53]} Nd7 {[%emt 0:02:27]} 12. Nd3 {[%emt 0:03:01]} O-O {[%emt 0:04:30]} 13. Nxb4 {[%emt 0:13:45]} axb4 {[%emt 0:00:38]} 14. Nd1 {[%emt 0:00:09]} c5 {[%emt 0:05:43]} 15. Nf2 {[%emt 0:04:51]} f5 {[%emt 0:03:12]} 16. Bh6 {[%emt 0:02:55]} Bxh6 {[%emt 0:00:52]} 17. Qxh6 {[%emt 0:00:07]} f4 {[%emt 0:03:42]} 18. g4 {[%emt 0:05:10]} Kh8 {[%emt 0:14:24]} 19. g5 {[%emt 0:13:39]} Rf7 {[%emt 0:14:31]} 20. Ng4 {[%emt 0:15:06]} b3 {[%emt 0:16:19]} 21. Be2 {[%emt 0:08:03]} Qf8 {[%emt 0:18:41]} 22. Kf2 {[%emt 0:05:58]} Qxh6 {[%emt 0:02:59]} 23. Nxh6 {[%emt 0:00:04]} Rf8 {[%emt 0:00:12]} 24. Bd1 {[%emt 0:00:30]} Nb6 {[%emt 0:00:55]} 25. Bxb3 {[%emt 0:00:06]} Ra5 {[%emt 0:00:07]} 26. Rhc1 {[%emt 0:01:04]} Kg7 {[%emt 0:02:36]} 27. Bd1 {[%emt 0:00:12]} Bh3 {[%emt 0:00:21]} 28. b3 {[%emt 0:00:14]} Rfa8 {[%emt 0:02:20]} 29. Rab1 {[%emt 0:01:05]} Nd7 {[%emt 0:00:31]} 30. Be2 {[%emt 0:00:07]} Nf8 {[%emt 0:02:11]} 31. Bf1 {[%emt 0:00:32]} Bc8 {[%emt 0:00:40]} 32. h4 {[%emt 0:00:06]} R5a6 {[%emt 0:00:37]} 33. Ke1 {[%emt 0:00:58]} Rb6 {[%emt 0:00:05]} 34. Kd2 {[%emt 0:00:05]} Rb4 {[%emt 0:00:57]} 35. Kc2 {[%emt 0:00:28]} Bd7 {[%emt 0:00:50]} 36. Bg2 {[%emt 0:00:58]} Ra7 {[%emt 0:04:23]} 37. Kd2 {[%emt 0:01:35]} Ra6 {[%emt 0:00:10]} 38. Kc3 {[%emt 0:02:02]} Rab6 {[%emt 0:00:08]} 39. a5 {[%emt 0:00:11]} Ra6 {[%emt 0:00:02]} 40. Ra1 {[%emt 0:00:09]} Ra7 {[%emt 0:02:01]} 41. Kb2 {[%emt 0:34:15]} Ra8 {[%emt 0:30:46]} 42. Rh1 {[%emt 0:01:52]} Ra6 {[%emt 0:01:24]} 43. Ra3 {[%emt 0:00:08]} Bc8 {[%emt 0:00:00]} 44. Bh3 {[%emt 0:00:00]} Bxh3 {[%emt 0:00:00]} 45. Rxh3 {[%emt 0:00:00]} Nd7 {[%emt 0:00:00]} 46. Rh1 {[%emt 0:00:00]} Nf6 {[%emt 0:00:00]} 47. Rg1 {[%emt 0:00:00]} Nh5 {[%emt 0:00:00]} 48. Ng4 {[%emt 0:00:00]} Ng3 {[%emt 0:00:00]} 49. Re1 {[%emt 0:00:00]} b6 {[%emt 0:00:00]} 50. axb6 {[%emt 0:00:00]} Raxb6 {[%emt 0:00:00]} 51. Nf6 {[%emt 0:00:00]} Kf7 {[%emt 0:00:00]} 52. Ra7+ {[%emt 0:00:00]} Rb7 {[%emt 0:00:00]} 53. Rxb7+ {[%emt 0:00:00]} Rxb7 {[%emt 0:00:00]} 54. Nxh7 {[%emt 0:00:00]} Nh5 {[%emt 0:00:00]} 55. Ra1 {[%emt 0:00:00]} Kg7 {[%emt 0:00:00]} 56. Nf6 {[%emt 0:00:00]} Nxf6 {[%emt 0:00:00]} 57. gxf6+ {[%emt 0:00:00]} Kxf6 {[%emt 0:00:00]} 58. Ra6 {[%emt 0:00:00]} Rd7 {[%emt 0:00:00]} 59. b4 {[%emt 0:00:00]} g5 {[%emt 0:06:28]} 60. bxc5 {[%emt 0:00:00]} gxh4 {[%emt 0:00:47]} 61. cxd6 {[%emt 0:00:00]} h3 {[%emt 0:01:08]} 62. c5 {[%emt 0:00:00]} Rg7 {[%emt 0:01:36]} 63. d7+ {[%emt 0:00:00]} Ke7 {[%emt 0:00:08]} 64. d6+ {[%emt 0:00:00]} Kd8 {[%emt 0:02:33]} 65. Ra8+ {[%emt 0:00:00]} Kxd7 {[%emt 0:00:06]} 66. Ra7+ {[%emt 0:00:00]} 1-0

[Event "101st Irish Championship 2022"]
[Site "Dublin"]
[Date "2022.07.07"]
[Round "6.4"]
[White "Flynn, Jacob"]
[Black "Carroll, Peter"]
[Result "0-1"]
[ECO "E48"]
[WhiteElo "2199"]
[BlackElo "2116"]
[Annotator "RC"]
[PlyCount "104"]
[EventDate "2022.07.05"]
[EventType "swiss"]
[EventCountry "IRL"]
[SourceTitle "playchess.com"]
[Source "ChessBase"]
[SourceQuality "1"]
[TimeControl "40/6300+30:1800+30"]

1. d4 {[%emt 1:46:00]} Nf6 {[%emt 0:00:22]} 2. Nf3 {[%emt 0:00:00]} e6 {[%emt 0:00:12]} 3. c4 {[%emt 0:00:00]} d5 {[%emt 0:00:25]} 4. Nc3 {[%emt 0:00:00]} Bb4 {[%emt 0:09:08]} 5. cxd5 {[%emt 0:00:00]} Qxd5 {[%emt 0:13:20]} 6. e3 {[%emt 0:00:00]} O-O {[%emt 0:01:36]} 7. Bd3 {[%emt 0:00:00]} b6 {[%emt 0:09:50]} 8. O-O {[%emt 0:00:00]} Bxc3 {[%emt 0:00:47]} 9. bxc3 {[%emt 0:00:00]} Ba6 {[%emt 0:13:21]} 10. Bxa6 {[%emt 0:00:00]} Nxa6 {[%emt 0:00:02]} 11. Qe2 {[%emt 0:00:00]} Qb7 {[%emt 0:00:52]} 12. Nd2 {[%emt 0:00:00]} c5 {[%emt 0:26:00]} 13. Ba3 {[%emt 0:00:00]} Rfd8 {[%emt 0:02:11]} 14. Nc4 {[%emt 0:00:00]} Rac8 {[%emt 0:02:05]} 15. Rfd1 {[%emt 0:00:00]} Ne4 {[%emt 0:07:49]} 16. Rdc1 {[%emt 0:00:00]} Nd6 {[%emt 0:18:12]} 17. Ne5 {[%emt 0:00:00]} f6 {[%emt 0:00:21]} 18. Nf3 {[%emt 0:00:00]} Ne4 {[%emt 0:00:28]} 19. c4 {[%emt 0:00:00]} Rd7 {[%emt 0:01:09]} 20. Rab1 {[%emt 0:00:25]} Rcd8 {[%emt 0:01:03]} 21. Qc2 {[%emt 0:00:50]} Qc6 {[%emt 0:00:43]} 22. Qb3 {[%emt 0:00:44]} g5 {[%emt 0:01:47]} 23. h3 {[%emt 0:01:54]} h5 {[%emt 0:00:37]} 24. Qb5 {[%emt 0:00:41]} Qb7 {[%emt 0:01:27]} 25. dxc5 {[%emt 0:00:05]} Naxc5 {[%emt 0:00:25]} 26. Nd4 {[%emt 0:01:02]} Qc7 {[%emt 0:02:57]} 27. Bxc5 {[%emt 0:05:11]} Nxc5 {[%emt 0:00:33]} 28. Ra1 {[%emt 0:00:30]} e5 {[%emt 0:00:58]} 29. Nf5 {[%emt 0:00:18]} Rd2 {[%emt 0:00:27]} 30. Ng3 {[%emt 0:01:15]} h4 {[%emt 0:00:42]} 31. Nf1 {[%emt 0:00:09]} R2d3 {[%emt 0:00:01]} 32. Qb2 {[%emt 0:01:18]} Qd7 {[%emt 0:00:49]} 33. Qe2 {[%emt 0:00:20]} e4 {[%emt 0:00:31]} 34. Rcb1 {[%emt 0:00:32]} Qf7 {[%emt 0:00:37]} 35. a4 {[%emt 0:01:06]} Qxc4 {[%emt 0:00:38]} 36. a5 {[%emt 0:00:07]} Nb3 {[%emt 0:00:27]} 37. Ra3 {[%emt 0:01:02]} Nxa5 {[%emt 0:00:33]} 38. Rxd3 {[%emt 0:00:11]} exd3 {[%emt 0:00:15]} 39. Qf3 {[%emt 0:00:38]} Qe6 {[%emt 0:00:39]} 40. Nd2 {[%emt 0:00:34]} Kg7 {[%emt 0:00:36]} 41. Rb4 {[%emt 0:08:29]} Nc6 {[%emt 0:12:49]} 42. Rc4 {[%emt 0:06:00]} Ne5 {[%emt 0:02:28]} 43. Qe4 {[%emt 0:00:16]} Qd7 {[%emt 0:05:21]} 44. Rc3 {[%emt 0:02:03]} a5 {[%emt 0:06:57]} 45. f4 {[%emt 0:00:55]} Nf7 {[%emt 0:00:47]} 46. fxg5 {[%emt 0:02:19]} Nxg5 {[%emt 0:00:13]} 47. Qxh4 {[%emt 0:00:28]} b5 {[%emt 0:03:15]} 48. Qg3 {[%emt 0:04:14]} Qd6 {[%emt 0:00:10]} 49. Qg4 {[%emt 0:00:08]} Qe6 {[%emt 0:02:12]} 50. Qh5 {[%emt 0:05:51]} Qxe3+ {[%emt 0:00:29]} 51. Kf1 {[%emt 0:00:52]} Qf4+ {[%emt 0:00:34]} 52. Nf3 {[%emt 0:01:15]} d2 {[%emt 0:00:09]} 0-1